[Event "Titled Tuesday Blitz May 23 Late 2023"]
[White "Wadsworth, Matthew J"]
[Black "Rustemov, Alexander"]
[WhiteFideId "415804"]
[BlackFideId "4119002"]
[WhiteElo "2347"]
[BlackElo "2861"]
[Result "0-1"]
[Round "07"]
[TimeControl "180+2"]
[Date "2023.05.23"]
[WhiteClock "0:00:12"]
[BlackClock "0:00:09"]

1. Nf3 {[%clk 0:03:00]}  d5 {[%clk 0:02:59]} 2. g3 {[%clk 0:03:00]}  Nf6 {[%clk 0:03:00]} 3. Bg2 {[%clk 0:03:01]}  Bf5 {[%clk 0:03:00]} 4. c4 {[%clk 0:03:00]}  dxc4 {[%clk 0:02:51]} 5. O-O {[%clk 0:02:40]}  c6 {[%clk 0:02:50]} 6. Na3 {[%clk 0:02:36]}  e5 {[%clk 0:02:48]} 7. Nxc4 {[%clk 0:02:32]}  e4 {[%clk 0:02:48]} 8. Nh4 {[%clk 0:02:32]}  Be6 {[%clk 0:02:47]} 9. d3 {[%clk 0:02:28]}  exd3 {[%clk 0:02:46]} 10. exd3 {[%clk 0:02:26]}  Be7 {[%clk 0:02:45]} 11. Qb3 {[%clk 0:02:04]}  Qd7 {[%clk 0:02:41]} 12. a4 {[%clk 0:01:58]}  O-O {[%clk 0:02:41]} 13. Be3 {[%clk 0:01:46]}  Rd8 {[%clk 0:02:31]} 14. Rfd1 {[%clk 0:01:42]}  Bd5 {[%clk 0:02:30]} 15. Nf3 {[%clk 0:01:37]}  Na6 {[%clk 0:02:28]} 16. Nfe5 {[%clk 0:01:32]}  Qc7 {[%clk 0:02:20]} 17. Bf4 {[%clk 0:01:30]}  Qc8 {[%clk 0:02:16]} 18. Rac1 {[%clk 0:01:19]}  Bxg2 {[%clk 0:02:12]} 19. Kxg2 {[%clk 0:01:18]}  Nd5 {[%clk 0:02:07]} 20. Na5 {[%clk 0:01:01]}  Nc5 {[%clk 0:02:00]} 21. Rxc5 {[%clk 0:00:54]}  Bxc5 {[%clk 0:02:00]} 22. Qxb7 {[%clk 0:00:48]}  Nxf4+ {[%clk 0:01:48]} 23. gxf4 {[%clk 0:00:49]}  Qf5 {[%clk 0:01:43]} 24. Naxc6 {[%clk 0:00:27]}  Re8 {[%clk 0:01:34]} 25. d4 {[%clk 0:00:23]}  Bd6 {[%clk 0:01:33]} 26. Qd7 {[%clk 0:00:11]}  Qxd7 {[%clk 0:01:18]} 27. Nxd7 {[%clk 0:00:11]}  a5 {[%clk 0:01:15]} 28. Nde5 {[%clk 0:00:09]}  f6 {[%clk 0:01:13]} 29. Nc4 {[%clk 0:00:08]}  Bxf4 {[%clk 0:01:12]} 30. d5 {[%clk 0:00:08]}  Re4 {[%clk 0:00:59]} 31. b3 {[%clk 0:00:06]}  Ra6 {[%clk 0:00:48]} 32. N4xa5 {[%clk 0:00:05]}  Bd6 {[%clk 0:00:35]} 33. Nc4 {[%clk 0:00:05]}  Bc5 {[%clk 0:00:34]} 34. Rd2 {[%clk 0:00:02]}  Kf7 {[%clk 0:00:32]} 35. Kf3 {[%clk 0:00:03]}  f5 {[%clk 0:00:25]} 36. Kg3 {[%clk 0:00:02]}  Kf6 {[%clk 0:00:25]} 37. f3 {[%clk 0:00:03]}  Re8 {[%clk 0:00:22]} 38. b4 {[%clk 0:00:03]}  Rxa4 {[%clk 0:00:20]} 39. bxc5 {[%clk 0:00:03]}  Rxc4 {[%clk 0:00:20]} 40. d6 {[%clk 0:00:03]}  f4+ {[%clk 0:00:14]} 41. Kg2 {[%clk 0:00:02]}  Rxc5 {[%clk 0:00:13]} 42. d7 {[%clk 0:00:03]}  Rf8 {[%clk 0:00:09]} 43. d8=Q+ {[%clk 0:00:03]}  Rxd8 {[%clk 0:00:09]} 44. Nxd8 {[%clk 0:00:03]}  g5 {[%clk 0:00:08]} 45. h4 {[%clk 0:00:03]}  h6 {[%clk 0:00:07]} 46. hxg5+ {[%clk 0:00:03]}  hxg5 {[%clk 0:00:08]} 47. Kh3 {[%clk 0:00:03]}  Rc1 {[%clk 0:00:07]} 48. Nb7 {[%clk 0:00:01]}  Rh1+ {[%clk 0:00:06]} 49. Kg2 {[%clk 0:00:01]}  Rh4 {[%clk 0:00:05]} 50. Nd6 {[%clk 0:00:01]}  g4 {[%clk 0:00:05]} 51. Ne4+ {[%clk 0:00:02]}  Ke5 {[%clk 0:00:04]} 52. fxg4 {[%clk 0:00:01]}  Kxe4 {[%clk 0:00:03]} 53. g5 {[%clk 0:00:01]}  Rg4+ {[%clk 0:00:02]} 54. Kf1 {[%clk 0:00:01]}  Rxg5 {[%clk 0:00:03]} 55. Ra2 {[%clk 0:00:02]}  Kf3 {[%clk 0:00:03]} 56. Ra3+ {[%clk 0:00:02]}  Kg4 {[%clk 0:00:04]} 57. Rb3 {[%clk 0:00:03]}  Rc5 {[%clk 0:00:04]} 58. Ra3 {[%clk 0:00:03]}  Rc2 {[%clk 0:00:04]} 59. Rb3 {[%clk 0:00:03]}  Rh2 {[%clk 0:00:04]} 60. Ra3 {[%clk 0:00:04]}  Rh1+ {[%clk 0:00:04]} 61. Kf2 {[%clk 0:00:04]}  Rb1 {[%clk 0:00:05]} 62. Rc3 {[%clk 0:00:03]}  Rb4 {[%clk 0:00:05]} 63. Ra3 {[%clk 0:00:03]}  Kf5 {[%clk 0:00:05]} 64. Kf1 {[%clk 0:00:03]}  Ke4 {[%clk 0:00:05]} 65. Rc3 {[%clk 0:00:04]}  Rd4 {[%clk 0:00:06]} 66. Ra3 {[%clk 0:00:04]}  Rd2 {[%clk 0:00:06]} 67. Rb3 {[%clk 0:00:04]}  Rd4 {[%clk 0:00:05]} 68. Ra3 {[%clk 0:00:04]}  Kf5 {[%clk 0:00:06]} 69. Rb3 {[%clk 0:00:05]}  Kg4 {[%clk 0:00:06]} 70. Ra3 {[%clk 0:00:05]}  Re4 {[%clk 0:00:07]} 71. Rb3 {[%clk 0:00:05]}  Ra4 {[%clk 0:00:07]} 72. Rc3 {[%clk 0:00:06]}  Rb4 {[%clk 0:00:08]} 73. Rd3 {[%clk 0:00:06]}  Rc4 {[%clk 0:00:07]} 74. Ra3 {[%clk 0:00:06]}  Rc2 {[%clk 0:00:08]} 75. Rb3 {[%clk 0:00:06]}  Ra2 {[%clk 0:00:07]} 76. Rc3 {[%clk 0:00:06]}  Kf5 {[%clk 0:00:07]} 77. Rb3 {[%clk 0:00:07]}  Ke4 {[%clk 0:00:06]} 78. Rc3 {[%clk 0:00:07]}  Kd4 {[%clk 0:00:06]} 79. Rb3 {[%clk 0:00:07]}  Rc2 {[%clk 0:00:06]} 80. Ra3 {[%clk 0:00:07]}  Ke5 {[%clk 0:00:06]} 81. Rb3 {[%clk 0:00:07]}  Kf5 {[%clk 0:00:06]} 82. Ra3 {[%clk 0:00:08]}  Rb2 {[%clk 0:00:06]} 83. Rc3 {[%clk 0:00:08]}  Kg4 {[%clk 0:00:06]} 84. Ra3 {[%clk 0:00:08]}  Rb8 {[%clk 0:00:06]} 85. Rc3 {[%clk 0:00:08]}  Rg8 {[%clk 0:00:06]} 86. Ra3 {[%clk 0:00:08]}  Kh4 {[%clk 0:00:07]} 87. Rc3 {[%clk 0:00:08]}  Rg3 {[%clk 0:00:07]} 88. Rc4 {[%clk 0:00:06]}  Kg4 {[%clk 0:00:06]} 89. Ra4 {[%clk 0:00:06]}  Rb3 {[%clk 0:00:06]} 90. Rc4 {[%clk 0:00:05]}  Kg3 {[%clk 0:00:05]} 91. Rc8 {[%clk 0:00:04]}  Rb1+ {[%clk 0:00:05]} 92. Ke2 {[%clk 0:00:05]}  f3+ {[%clk 0:00:05]} 93. Ke3 {[%clk 0:00:05]}  Re1+ {[%clk 0:00:05]} 94. Kd2 {[%clk 0:00:06]}  Re7 {[%clk 0:00:06]} 95. Rg8+ {[%clk 0:00:05]}  Kf2 {[%clk 0:00:06]} 96. Rf8 {[%clk 0:00:06]}  Re5 {[%clk 0:00:07]} 97. Rf7 {[%clk 0:00:06]}  Kg2 {[%clk 0:00:07]} 98. Rg7+ {[%clk 0:00:05]}  Kf1 {[%clk 0:00:07]} 99. Rf7 {[%clk 0:00:06]}  f2 {[%clk 0:00:08]} 100. Kd3 {[%clk 0:00:07]}  Kg2 {[%clk 0:00:08]} 101. Rg7+ {[%clk 0:00:06]}  Kf3 {[%clk 0:00:09]} 102. Rf7+ {[%clk 0:00:07]}  Kg3 {[%clk 0:00:09]} 103. Rg7+ {[%clk 0:00:07]}  Kf4 {[%clk 0:00:09]} 104. Rf7+ {[%clk 0:00:08]}  Kg3 {[%clk 0:00:10]} 105. Rg7+ {[%clk 0:00:08]}  Kf3 {[%clk 0:00:10]} 106. Rf7+ {[%clk 0:00:08]}  Kg2 {[%clk 0:00:10]} 107. Rg7+ {[%clk 0:00:09]}  Kf1 {[%clk 0:00:11]} 108. Kd2 {[%clk 0:00:09]}  Rd5+ {[%clk 0:00:08]} 109. Kc2 {[%clk 0:00:10]}  Ke2 {[%clk 0:00:08]} 110. Re7+ {[%clk 0:00:10]}  Kf3 {[%clk 0:00:08]} 111. Rf7+ {[%clk 0:00:11]}  Ke3 {[%clk 0:00:09]} 112. Re7+ {[%clk 0:00:12]}  Kf4 {[%clk 0:00:09]} 113. Rf7+ {[%clk 0:00:13]}  Rf5 {[%clk 0:00:09]} 114. Rxf5+ {[%clk 0:00:12]}  Kxf5 {[%clk 0:00:09]} 0-1


[Site "https://www.chess.com"]

[Event "Titled Tuesday Blitz May 23 Late 2023"]
[White "Gurevich, Dmitry"]
[Black "Terry, Renato"]
[WhiteFideId "2000407"]
[BlackFideId "3803457"]
[WhiteElo "2506"]
[BlackElo "2575"]
[Result "0-1"]
[Round "07"]
[TimeControl "180+2"]
[Date "2023.05.23"]
[WhiteClock "0:00:00"]
[BlackClock "0:00:23"]

1. d4 {[%clk 0:03:00]}  d5 {[%clk 0:03:00]} 2. c4 {[%clk 0:03:00]}  dxc4 {[%clk 0:03:01]} 3. e3 {[%clk 0:03:00]}  Nf6 {[%clk 0:03:00]} 4. Bxc4 {[%clk 0:02:58]}  e6 {[%clk 0:03:01]} 5. Nf3 {[%clk 0:02:57]}  a6 {[%clk 0:03:02]} 6. Bb3 {[%clk 0:02:56]}  b5 {[%clk 0:02:59]} 7. a4 {[%clk 0:02:55]}  b4 {[%clk 0:02:58]} 8. Nbd2 {[%clk 0:02:52]}  Bb7 {[%clk 0:02:59]} 9. Qe2 {[%clk 0:02:49]}  c5 {[%clk 0:02:58]} 10. O-O {[%clk 0:02:48]}  Be7 {[%clk 0:02:54]} 11. Rd1 {[%clk 0:02:44]}  O-O {[%clk 0:02:49]} 12. e4 {[%clk 0:02:44]}  cxd4 {[%clk 0:02:44]} 13. e5 {[%clk 0:02:44]}  Nd5 {[%clk 0:02:43]} 14. Ne4 {[%clk 0:02:39]}  Nc6 {[%clk 0:02:43]} 15. h4 {[%clk 0:02:22]}  Rc8 {[%clk 0:02:33]} 16. Bc2 {[%clk 0:02:18]}  Qc7 {[%clk 0:01:59]} 17. Neg5 {[%clk 0:02:03]}  g6 {[%clk 0:01:59]} 18. h5 {[%clk 0:01:44]}  Nxe5 {[%clk 0:01:56]} 19. Be4 {[%clk 0:01:12]}  d3 {[%clk 0:01:48]} 20. Qe1 {[%clk 0:01:00]}  Bf6 {[%clk 0:01:42]} 21. Bxd3 {[%clk 0:00:38]}  Nxd3 {[%clk 0:01:31]} 22. Rxd3 {[%clk 0:00:38]}  Nf4 {[%clk 0:01:30]} 23. Bxf4 {[%clk 0:00:19]}  Qxf4 {[%clk 0:01:31]} 24. Rd7 {[%clk 0:00:16]}  Bc6 {[%clk 0:01:18]} 25. Rxf7 {[%clk 0:00:12]}  Rxf7 {[%clk 0:00:40]} 26. Qxe6 {[%clk 0:00:11]}  Rc7 {[%clk 0:00:41]} 27. hxg6 {[%clk 0:00:09]}  hxg6 {[%clk 0:00:30]} 28. Nxf7 {[%clk 0:00:09]}  Bd7 {[%clk 0:00:31]} 29. Qd5 {[%clk 0:00:04]}  Kg7 {[%clk 0:00:27]} 30. N7e5 {[%clk 0:00:03]}  Bf5 {[%clk 0:00:24]} 31. g3 {[%clk 0:00:01]}  Qe4 {[%clk 0:00:23]} 32. Qd6 {[%clk 0:00:00]}  Re7 {[%clk 0:00:23]} 0-1


[Site "https://www.chess.com"]

[Event "Titled Tuesday Blitz May 23 Late 2023"]
[White "Tejedor Fuente, Enrique"]
[Black "Dardha, Daniel"]
[WhiteFideId "2299100"]
[BlackFideId "240990"]
[WhiteElo "2496"]
[BlackElo "2581"]
[Result "0-1"]
[Round "07"]
[TimeControl "180+2"]
[Date "2023.05.23"]
[WhiteClock "0:00:02"]
[BlackClock "0:00:13"]

1. d4 {[%clk 0:02:56]}  g5 {[%clk 0:02:54]} 2. Bxg5 {[%clk 0:02:55]}  Bg7 {[%clk 0:02:54]} 3. c3 {[%clk 0:02:54]}  c5 {[%clk 0:02:54]} 4. Nf3 {[%clk 0:02:52]}  Qb6 {[%clk 0:02:51]} 5. Bc1 {[%clk 0:02:49]}  d5 {[%clk 0:02:48]} 6. e3 {[%clk 0:02:39]}  Nc6 {[%clk 0:02:43]} 7. Bd3 {[%clk 0:02:33]}  Nf6 {[%clk 0:02:43]} 8. O-O {[%clk 0:02:32]}  Rg8 {[%clk 0:02:43]} 9. Kh1 {[%clk 0:02:32]}  Bg4 {[%clk 0:02:42]} 10. Be2 {[%clk 0:02:32]}  Qc7 {[%clk 0:02:41]} 11. Nbd2 {[%clk 0:02:30]}  O-O-O {[%clk 0:02:39]} 12. dxc5 {[%clk 0:02:29]}  e5 {[%clk 0:02:39]} 13. b4 {[%clk 0:02:29]}  Ne4 {[%clk 0:02:31]} 14. Nd4 {[%clk 0:02:22]}  Bxe2 {[%clk 0:02:19]} 15. Nxe2 {[%clk 0:02:23]}  f5 {[%clk 0:02:17]} 16. Nf3 {[%clk 0:02:19]}  Bf6 {[%clk 0:02:15]} 17. Ng3 {[%clk 0:02:16]}  Qg7 {[%clk 0:02:15]} 18. Qc2 {[%clk 0:02:10]}  h5 {[%clk 0:02:13]} 19. Rg1 {[%clk 0:02:09]}  Qg4 {[%clk 0:02:04]} 20. h3 {[%clk 0:01:59]}  Qg6 {[%clk 0:01:57]} 21. b5 {[%clk 0:01:59]}  Na5 {[%clk 0:01:43]} 22. Nxe4 {[%clk 0:01:46]}  fxe4 {[%clk 0:01:32]} 23. Ne1 {[%clk 0:01:40]}  Qf5 {[%clk 0:01:29]} 24. Qa4 {[%clk 0:01:32]}  b6 {[%clk 0:01:19]} 25. cxb6 {[%clk 0:01:16]}  axb6 {[%clk 0:01:19]} 26. Qc2 {[%clk 0:01:11]}  Bh4 {[%clk 0:01:17]} 27. f4 {[%clk 0:01:05]}  Rg3 {[%clk 0:01:13]} 28. a4 {[%clk 0:00:52]}  Rdg8 {[%clk 0:01:07]} 29. Ra2 {[%clk 0:00:44]}  Nc4 {[%clk 0:00:57]} 30. Nf3 {[%clk 0:00:33]}  Rxf3 {[%clk 0:00:27]} 31. gxf3 {[%clk 0:00:32]}  Qxh3+ {[%clk 0:00:28]} 32. Qh2 {[%clk 0:00:33]}  Qxf3+ {[%clk 0:00:28]} 33. Rag2 {[%clk 0:00:31]}  Rg3 {[%clk 0:00:28]} 34. Qxh4 {[%clk 0:00:19]}  Rh3+ {[%clk 0:00:28]} 35. Qxh3+ {[%clk 0:00:19]}  Qxh3+ {[%clk 0:00:29]} 36. Rh2 {[%clk 0:00:19]}  Qf3+ {[%clk 0:00:29]} 37. Rhg2 {[%clk 0:00:18]}  exf4 {[%clk 0:00:24]} 38. exf4 {[%clk 0:00:17]}  Nd6 {[%clk 0:00:19]} 39. a5 {[%clk 0:00:11]}  bxa5 {[%clk 0:00:17]} 40. b6 {[%clk 0:00:11]}  Nf5 {[%clk 0:00:17]} 41. Kh2 {[%clk 0:00:09]}  e3 {[%clk 0:00:13]} 42. Rg5 {[%clk 0:00:07]}  Qxf4+ {[%clk 0:00:12]} 43. Kh3 {[%clk 0:00:05]}  Qh4+ {[%clk 0:00:12]} 44. Kg2 {[%clk 0:00:04]}  Qxg5+ {[%clk 0:00:13]} 45. Kf1 {[%clk 0:00:04]}  e2+ {[%clk 0:00:14]} 46. Kf2 {[%clk 0:00:04]}  Qxg1+ {[%clk 0:00:14]} 47. Kxe2 {[%clk 0:00:02]}  Qxc1 {[%clk 0:00:13]} 0-1


[Site "https://www.chess.com"]

[Event "Titled Tuesday Blitz May 23 Late 2023"]
[White "Sanal, Vahap"]
[Black "Prohaszka, Peter"]
[WhiteFideId "6300545"]
[BlackFideId "726265"]
[WhiteElo "2606"]
[BlackElo "2626"]
[Result "0-1"]
[Round "07"]
[TimeControl "180+2"]
[Date "2023.05.23"]
[WhiteClock "0:00:04"]
[BlackClock "0:00:05"]

1. Nf3 {[%clk 0:02:59]}  d5 {[%clk 0:02:59]} 2. b3 {[%clk 0:03:00]}  Bf5 {[%clk 0:02:58]} 3. Bb2 {[%clk 0:02:59]}  e6 {[%clk 0:02:59]} 4. g3 {[%clk 0:02:58]}  h6 {[%clk 0:02:59]} 5. Bg2 {[%clk 0:02:58]}  Nf6 {[%clk 0:03:00]} 6. O-O {[%clk 0:02:58]}  c6 {[%clk 0:03:00]} 7. d3 {[%clk 0:02:59]}  Bd6 {[%clk 0:02:48]} 8. Nbd2 {[%clk 0:02:59]}  O-O {[%clk 0:02:48]} 9. Re1 {[%clk 0:02:59]}  Bh7 {[%clk 0:02:47]} 10. e4 {[%clk 0:03:00]}  Nfd7 {[%clk 0:02:33]} 11. Qe2 {[%clk 0:02:54]}  a5 {[%clk 0:02:31]} 12. a3 {[%clk 0:02:52]}  Na6 {[%clk 0:02:31]} 13. Rad1 {[%clk 0:02:52]}  Qe7 {[%clk 0:02:31]} 14. Nb1 {[%clk 0:02:40]}  Rfd8 {[%clk 0:02:20]} 15. h4 {[%clk 0:02:40]}  Nac5 {[%clk 0:02:04]} 16. e5 {[%clk 0:02:33]}  Bc7 {[%clk 0:02:04]} 17. d4 {[%clk 0:02:34]}  Ne4 {[%clk 0:02:02]} 18. Nh2 {[%clk 0:02:28]}  c5 {[%clk 0:01:59]} 19. c3 {[%clk 0:02:28]}  b5 {[%clk 0:01:15]} 20. Nf1 {[%clk 0:02:15]}  b4 {[%clk 0:01:13]} 21. axb4 {[%clk 0:02:15]}  axb4 {[%clk 0:01:09]} 22. cxb4 {[%clk 0:02:15]}  cxd4 {[%clk 0:01:02]} 23. f3 {[%clk 0:01:58]}  Nxg3 {[%clk 0:00:37]} 24. Nxg3 {[%clk 0:01:57]}  Bxe5 {[%clk 0:00:37]} 25. Qf2 {[%clk 0:01:49]}  Qxh4 {[%clk 0:00:36]} 26. Nf1 {[%clk 0:01:46]}  Qxf2+ {[%clk 0:00:35]} 27. Kxf2 {[%clk 0:01:47]}  Ra2 {[%clk 0:00:35]} 28. Rd2 {[%clk 0:01:41]}  Bf4 {[%clk 0:00:31]} 29. Bxd4 {[%clk 0:01:35]}  Bxb1 {[%clk 0:00:24]} 30. Rxa2 {[%clk 0:01:35]}  Bxa2 {[%clk 0:00:24]} 31. b5 {[%clk 0:01:27]}  Rb8 {[%clk 0:00:23]} 32. Ra1 {[%clk 0:01:15]}  Bxb3 {[%clk 0:00:24]} 33. Ra7 {[%clk 0:01:15]}  Nb6 {[%clk 0:00:17]} 34. Ng3 {[%clk 0:01:10]}  Bc4 {[%clk 0:00:15]} 35. Nh5 {[%clk 0:01:09]}  e5 {[%clk 0:00:16]} 36. Bc5 {[%clk 0:00:56]}  Bxb5 {[%clk 0:00:16]} 37. Nxf4 {[%clk 0:00:50]}  exf4 {[%clk 0:00:17]} 38. Bd6 {[%clk 0:00:51]}  Ra8 {[%clk 0:00:12]} 39. Rb7 {[%clk 0:00:51]}  Ra2+ {[%clk 0:00:08]} 40. Kg1 {[%clk 0:00:51]}  Nc4 {[%clk 0:00:08]} 41. Bxf4 {[%clk 0:00:50]}  Bc6 {[%clk 0:00:07]} 42. Rc7 {[%clk 0:00:50]}  Ra6 {[%clk 0:00:06]} 43. Bh3 {[%clk 0:00:50]}  g6 {[%clk 0:00:05]} 44. Bxh6 {[%clk 0:00:50]}  d4 {[%clk 0:00:04]} 45. Bf1 {[%clk 0:00:45]}  Bb5 {[%clk 0:00:03]} 46. Bxc4 {[%clk 0:00:43]}  Bxc4 {[%clk 0:00:04]} 47. Rxc4 {[%clk 0:00:44]}  Rd6 {[%clk 0:00:01]} 48. Bf4 {[%clk 0:00:45]}  Rd5 {[%clk 0:00:02]} 49. Kf1 {[%clk 0:00:41]}  g5 {[%clk 0:00:02]} 50. Bd2 {[%clk 0:00:41]}  Kg7 {[%clk 0:00:02]} 51. Ke2 {[%clk 0:00:41]}  Kg6 {[%clk 0:00:02]} 52. Kd3 {[%clk 0:00:42]}  Kf5 {[%clk 0:00:03]} 53. Ra4 {[%clk 0:00:39]}  g4 {[%clk 0:00:02]} 54. fxg4+ {[%clk 0:00:38]}  Kxg4 {[%clk 0:00:02]} 55. Ke4 {[%clk 0:00:37]}  Rd7 {[%clk 0:00:02]} 56. Ra8 {[%clk 0:00:37]}  f5+ {[%clk 0:00:03]} 57. Kd3 {[%clk 0:00:34]}  Rf7 {[%clk 0:00:02]} 58. Rg8+ {[%clk 0:00:26]}  Kf3 {[%clk 0:00:02]} 59. Bb4 {[%clk 0:00:22]}  f4 {[%clk 0:00:02]} 60. Bc5 {[%clk 0:00:22]}  Rb7 {[%clk 0:00:02]} 61. Bxd4 {[%clk 0:00:22]}  Rb3+ {[%clk 0:00:03]} 62. Kc4 {[%clk 0:00:22]}  Ra3 {[%clk 0:00:03]} 63. Rh8 {[%clk 0:00:19]}  Ra4+ {[%clk 0:00:03]} 64. Kd3 {[%clk 0:00:19]}  Ra3+ {[%clk 0:00:04]} 65. Bc3 {[%clk 0:00:20]}  Kg3 {[%clk 0:00:03]} 66. Rg8+ {[%clk 0:00:20]}  Kf3 {[%clk 0:00:03]} 67. Rg7 {[%clk 0:00:20]}  Rb3 {[%clk 0:00:03]} 68. Rc7 {[%clk 0:00:20]}  Ra3 {[%clk 0:00:03]} 69. Rb7 {[%clk 0:00:20]}  Kg3 {[%clk 0:00:03]} 70. Rb8 {[%clk 0:00:18]}  Kf3 {[%clk 0:00:03]} 71. Rc8 {[%clk 0:00:18]}  Rb3 {[%clk 0:00:03]} 72. Kd2 {[%clk 0:00:17]}  Ra3 {[%clk 0:00:03]} 73. Rh8 {[%clk 0:00:16]}  Ra2+ {[%clk 0:00:03]} 74. Kd3 {[%clk 0:00:16]}  Ra3 {[%clk 0:00:04]} 75. Rh3+ {[%clk 0:00:15]}  Kg2 {[%clk 0:00:04]} 76. Rh7 {[%clk 0:00:16]}  f3 {[%clk 0:00:04]} 77. Rg7+ {[%clk 0:00:16]}  Kf1 {[%clk 0:00:04]} 78. Kd2 {[%clk 0:00:16]}  f2 {[%clk 0:00:04]} 79. Bd4 {[%clk 0:00:14]}  Ra2+ {[%clk 0:00:04]} 80. Kd3 {[%clk 0:00:13]}  Ra3+ {[%clk 0:00:04]} 81. Kd2 {[%clk 0:00:12]}  Ra2+ {[%clk 0:00:04]} 82. Kd1 {[%clk 0:00:13]}  Ra3 {[%clk 0:00:04]} 83. Bc5 {[%clk 0:00:05]}  Ra5 {[%clk 0:00:03]} 84. Bb6 {[%clk 0:00:05]}  Ra1+ {[%clk 0:00:03]} 85. Kd2 {[%clk 0:00:05]}  Ra2+ {[%clk 0:00:04]} 86. Kd3 {[%clk 0:00:05]}  Ra3+ {[%clk 0:00:05]} 87. Kc2 {[%clk 0:00:05]}  Ra2+ {[%clk 0:00:05]} 88. Kb3 {[%clk 0:00:05]}  Re2 {[%clk 0:00:05]} 89. Kc4 {[%clk 0:00:02]}  Rb2 {[%clk 0:00:05]} 90. Ba7 {[%clk 0:00:02]}  Ke2 {[%clk 0:00:04]} 91. Re7+ {[%clk 0:00:02]}  Kf3 {[%clk 0:00:04]} 92. Rf7+ {[%clk 0:00:03]}  Kg2 {[%clk 0:00:04]} 93. Rg7+ {[%clk 0:00:03]}  Kf3 {[%clk 0:00:05]} 94. Bd4 {[%clk 0:00:03]}  f1=Q+ {[%clk 0:00:04]} 95. Kc3 {[%clk 0:00:03]}  Qc1+ {[%clk 0:00:04]} 96. Kd3 {[%clk 0:00:04]}  Rd2# {[%clk 0:00:05]} 0-1


[Site "https://www.chess.com"]

[Event "Titled Tuesday Blitz May 23 Late 2023"]
[White "Licznerski, Lukasz"]
[Black "Vlassov, Nikolai"]
[WhiteFideId "1179250"]
[BlackFideId "4103360"]
[WhiteElo "2453"]
[BlackElo "2324"]
[Result "0-1"]
[Round "07"]
[TimeControl "180+2"]
[Date "2023.05.23"]
[WhiteClock "0:00:02"]
[BlackClock "0:00:11"]

1. e4 {[%clk 0:03:00]}  Nc6 {[%clk 0:02:55]} 2. Nf3 {[%clk 0:03:00]}  d5 {[%clk 0:02:54]} 3. exd5 {[%clk 0:02:58]}  Qxd5 {[%clk 0:02:55]} 4. Nc3 {[%clk 0:02:59]}  Qa5 {[%clk 0:02:55]} 5. d4 {[%clk 0:02:59]}  Bg4 {[%clk 0:02:55]} 6. Bb5 {[%clk 0:02:50]}  O-O-O {[%clk 0:02:54]} 7. Bxc6 {[%clk 0:02:51]}  bxc6 {[%clk 0:02:55]} 8. h3 {[%clk 0:02:48]}  Qh5 {[%clk 0:02:54]} 9. Be3 {[%clk 0:02:45]}  e6 {[%clk 0:02:48]} 10. Qe2 {[%clk 0:02:41]}  Bxf3 {[%clk 0:02:47]} 11. gxf3 {[%clk 0:02:35]}  Bb4 {[%clk 0:02:45]} 12. Qa6+ {[%clk 0:02:31]}  Kd7 {[%clk 0:02:44]} 13. O-O-O {[%clk 0:02:24]}  Bxc3 {[%clk 0:02:35]} 14. bxc3 {[%clk 0:02:21]}  Ne7 {[%clk 0:02:31]} 15. Rhg1 {[%clk 0:01:39]}  Qxf3 {[%clk 0:02:04]} 16. Rxg7 {[%clk 0:01:34]}  Ng6 {[%clk 0:01:53]} 17. d5 {[%clk 0:01:22]}  exd5 {[%clk 0:01:41]} 18. c4 {[%clk 0:01:12]}  Rb8 {[%clk 0:01:26]} 19. cxd5 {[%clk 0:01:06]}  Rb1+ {[%clk 0:01:24]} 20. Kxb1 {[%clk 0:01:05]}  Qxd1+ {[%clk 0:01:24]} 21. Kb2 {[%clk 0:01:02]}  Rb8+ {[%clk 0:01:23]} 22. Ka3 {[%clk 0:00:56]}  Qxd5 {[%clk 0:01:11]} 23. Qd3 {[%clk 0:00:56]}  Ne5 {[%clk 0:00:54]} 24. Qxd5+ {[%clk 0:00:35]}  cxd5 {[%clk 0:00:54]} 25. Ka4 {[%clk 0:00:28]}  Rb2 {[%clk 0:00:45]} 26. c3 {[%clk 0:00:26]}  Ke6 {[%clk 0:00:39]} 27. a3 {[%clk 0:00:20]}  a6 {[%clk 0:00:26]} 28. Rxh7 {[%clk 0:00:19]}  Nd7 {[%clk 0:00:14]} 29. Rh6+ {[%clk 0:00:16]}  f6 {[%clk 0:00:14]} 30. Rh7 {[%clk 0:00:16]}  c5 {[%clk 0:00:14]} 31. h4 {[%clk 0:00:08]}  Rb5 {[%clk 0:00:13]} 32. Rxd7 {[%clk 0:00:02]}  Kxd7 {[%clk 0:00:12]} 33. h5 {[%clk 0:00:03]}  Ke6 {[%clk 0:00:12]} 34. h6 {[%clk 0:00:03]}  Kf7 {[%clk 0:00:12]} 35. Bf4 {[%clk 0:00:01]}  Kg6 {[%clk 0:00:12]} 36. Be3 {[%clk 0:00:02]}  Kh7 {[%clk 0:00:11]} 37. Bf4 {[%clk 0:00:02]}  d4 {[%clk 0:00:11]} 38. cxd4 {[%clk 0:00:02]}  cxd4 {[%clk 0:00:12]} 39. Bd2 {[%clk 0:00:02]}  d3 {[%clk 0:00:12]} 40. Be3 {[%clk 0:00:02]}  Rb2 {[%clk 0:00:12]} 41. Ka5 {[%clk 0:00:01]}  d2 {[%clk 0:00:12]} 42. Bxd2 {[%clk 0:00:02]}  Rxd2 {[%clk 0:00:12]} 43. f4 {[%clk 0:00:02]}  Rd4 {[%clk 0:00:11]} 0-1


[Site "https://www.chess.com"]

[Event "Titled Tuesday Blitz May 23 Late 2023"]
[White "Amburgy, Ryan"]
[Black "Mahdavi, Reza"]
[WhiteFideId "30924820"]
[BlackFideId "12595926"]
[WhiteElo "2134"]
[BlackElo "2352"]
[Result "0-1"]
[Round "07"]
[TimeControl "180+2"]
[Date "2023.05.23"]
[WhiteClock "0:00:18"]
[BlackClock "0:00:43"]

1. d4 {[%clk 0:03:00]}  Nf6 {[%clk 0:02:33]} 2. c4 {[%clk 0:03:00]}  e6 {[%clk 0:02:25]} 3. Nf3 {[%clk 0:03:00]}  d5 {[%clk 0:02:26]} 4. Nc3 {[%clk 0:03:00]}  Bb4 {[%clk 0:02:25]} 5. Qa4+ {[%clk 0:03:01]}  Nc6 {[%clk 0:02:23]} 6. a3 {[%clk 0:03:01]}  Bxc3+ {[%clk 0:02:07]} 7. bxc3 {[%clk 0:03:02]}  Bd7 {[%clk 0:02:03]} 8. cxd5 {[%clk 0:03:02]}  exd5 {[%clk 0:01:35]} 9. Bg5 {[%clk 0:03:01]}  h6 {[%clk 0:01:34]} 10. Bh4 {[%clk 0:03:01]}  O-O {[%clk 0:01:34]} 11. e3 {[%clk 0:03:01]}  g5 {[%clk 0:01:25]} 12. Bg3 {[%clk 0:03:01]}  Ne4 {[%clk 0:01:25]} 13. Qc2 {[%clk 0:03:01]}  f5 {[%clk 0:01:25]} 14. Bd3 {[%clk 0:02:55]}  f4 {[%clk 0:01:22]} 15. exf4 {[%clk 0:02:42]}  gxf4 {[%clk 0:01:22]} 16. Bh4 {[%clk 0:02:43]}  Qe8 {[%clk 0:01:23]} 17. O-O {[%clk 0:02:42]}  Bf5 {[%clk 0:01:16]} 18. c4 {[%clk 0:02:14]}  Bg4 {[%clk 0:01:11]} 19. Kh1 {[%clk 0:01:35]}  Bxf3 {[%clk 0:00:46]} 20. gxf3 {[%clk 0:01:36]}  Nxd4 {[%clk 0:00:46]} 21. Qb2 {[%clk 0:01:36]}  Nxf3 {[%clk 0:00:45]} 22. Rg1+ {[%clk 0:01:32]}  Neg5 {[%clk 0:00:44]} 23. Bxg5 {[%clk 0:01:14]}  Nxg5 {[%clk 0:00:44]} 24. cxd5 {[%clk 0:00:59]}  Qd7 {[%clk 0:00:38]} 25. Qe5 {[%clk 0:00:54]}  Rae8 {[%clk 0:00:38]} 26. Rxg5+ {[%clk 0:00:49]}  hxg5 {[%clk 0:00:39]} 27. Qxg5+ {[%clk 0:00:50]}  Qg7 {[%clk 0:00:39]} 28. Rg1 {[%clk 0:00:40]}  Qxg5 {[%clk 0:00:39]} 29. Rxg5+ {[%clk 0:00:41]}  Kf7 {[%clk 0:00:40]} 30. Rg4 {[%clk 0:00:22]}  Re1+ {[%clk 0:00:38]} 31. Kg2 {[%clk 0:00:22]}  Rg8 {[%clk 0:00:39]} 32. Rxg8 {[%clk 0:00:22]}  Kxg8 {[%clk 0:00:40]} 33. Kf3 {[%clk 0:00:22]}  Ra1 {[%clk 0:00:40]} 34. Kxf4 {[%clk 0:00:22]}  Rxa3 {[%clk 0:00:41]} 35. Be4 {[%clk 0:00:21]}  Rc3 {[%clk 0:00:40]} 36. f3 {[%clk 0:00:21]}  a5 {[%clk 0:00:41]} 37. Ke5 {[%clk 0:00:21]}  a4 {[%clk 0:00:42]} 38. d6 {[%clk 0:00:19]}  cxd6+ {[%clk 0:00:42]} 39. Kxd6 {[%clk 0:00:20]}  b5 {[%clk 0:00:42]} 40. Kd5 {[%clk 0:00:20]}  a3 {[%clk 0:00:41]} 41. Kd4 {[%clk 0:00:20]}  b4 {[%clk 0:00:42]} 42. h4 {[%clk 0:00:19]}  Kg7 {[%clk 0:00:42]} 43. f4 {[%clk 0:00:19]}  a2 {[%clk 0:00:42]} 44. Bd5 {[%clk 0:00:18]}  a1=Q {[%clk 0:00:43]} 0-1


[Site "https://www.chess.com"]